bitfinex-derivatives/quotes_BTCF0:USTF0_20251030
["timestamp","ask_amount","ask_price","bid_price","bid_amount"]
[1761840097013,8.354e-05,107680.0,107670.0,0.45181073]
[1761840097317,8.354e-05,107680.0,107670.0,0.81261073]
[1761840097512,8.354e-05,107680.0,107670.0,0.74586399]
[1761840097708,8.354e-05,107680.0,107670.0,0.98864338]
[1761840098025,8.354e-05,107680.0,107670.0,0.99144338]
[1761840098324,8.354e-05,107680.0,107670.0,0.74866399]
[1761840098623,8.354e-05,107680.0,107670.0,1.15238559]
[1761840098821,8.354e-05,107680.0,107670.0,1.15038559]
[1761840099021,8.354e-05,107680.0,107670.0,1.06594399]
[1761840099620,8.354e-05,107680.0,107670.0,1.66694399]
[1761840099819,8.354e-05,107680.0,107670.0,1.4261646]
[1761840100019,8.354e-05,107680.0,107670.0,1.66894399]
[1761840100324,8.354e-05,107680.0,107670.0,1.67174399]
[1761840101230,8.354e-05,107680.0,107670.0,1.06894399]
[1761840102032,8.354e-05,107680.0,107670.0,1.13846557]
[1761840102221,8.354e-05,107680.0,107670.0,0.81258557]
[1761840102423,8.354e-05,107680.0,107670.0,1.13162557]
[1761840102623,8.354e-05,107680.0,107670.0,1.06690399]
[1761840102823,8.354e-05,107680.0,107670.0,1.06590399]
[1761840103018,8.354e-05,107680.0,107670.0,1.13262557]
[1761840103528,0.05789354,107680.0,107670.0,1.06590399]
[1761840103936,8.354e-05,107680.0,107670.0,1.06870399]
[1761840104837,8.354e-05,107680.0,107670.0,1.37820496]
[1761840105135,0.41861,107710.0,107700.0,0.0434]
[1761840105330,0.44162741,107710.0,107700.0,0.28617939]
[1761840105537,0.44162741,107710.0,107700.0,0.02156]
[1761840105838,0.05781,107700.0,107690.0,0.70208089]
[1761840106135,0.04484,107690.0,107680.0,0.88844809]
[1761840106332,0.05781,107690.0,107680.0,1.21148809]
[1761840106535,0.05781,107700.0,107690.0,0.1362673]
[1761840106736,0.05781,107700.0,107690.0,0.37904669]
[1761840106936,0.05781,107700.0,107690.0,0.73984669]
[1761840107138,0.05781,107700.0,107690.0,0.37904669]
[1761840107734,0.05781,107700.0,107690.0,0.73984669]
[1761840108133,0.37577,107710.0,107690.0,0.73984669]
[1761840108330,0.41861,107720.0,107710.0,0.0434]
[1761840108639,0.44161874,107720.0,107710.0,0.28617939]
[1761840109034,0.08081874,107720.0,107710.0,0.28617939]
[1761840109241,0.44161874,107720.0,107710.0,0.0434]
[1761840109431,0.44161874,107720.0,107710.0,0.02156]
[1761840109639,0.44261874,107720.0,107710.0,0.0434]
[1761840110641,0.44261874,107720.0,107710.0,0.1362501]
[1761840110830,0.44261874,107720.0,107710.0,0.02156]
[1761840111031,0.04521,107710.0,107700.0,0.71259199]
[1761840111632,0.04521,107710.0,107700.0,0.70335149]
[1761840111832,0.04521,107710.0,107700.0,0.71260741]
[1761840112038,0.04521,107710.0,107700.0,1.07340741]
[1761840112237,0.04521,107710.0,107700.0,0.71360741]
[1761840112835,0.06821796,107710.0,107700.0,0.70435149]
[1761840113035,0.42901796,107710.0,107700.0,0.70435149]
[1761840113443,0.06821796,107710.0,107700.0,0.70435149]
[1761840113644,0.08155796,107710.0,107700.0,0.70435149]
[1761840114238,0.08155796,107710.0,107700.0,0.4384121]
[1761840114443,0.44235796,107710.0,107700.0,0.4615721]
[1761840114846,0.44235796,107710.0,107700.0,0.001]
[1761840115152,1.60809735,107710.0,107700.0,0.001]
[1761840115444,0.05802,107690.0,107670.0,0.30950097]
[1761840115649,0.04468,107670.0,107660.0,0.81696844]
[1761840116244,0.04468,107670.0,107660.0,0.45616844]
[1761840116548,0.04468,107670.0,107660.0,0.38944686]
[1761840116738,0.04468,107670.0,107660.0,0.45616844]
[1761840117238,0.04468,107670.0,107660.0,0.38944686]
[1761840117645,0.04468,107670.0,107660.0,0.37985819]
[1761840117948,0.04468,107670.0,107660.0,0.38085819]
[1761840118151,0.04468,107670.0,107660.0,0.1380788]
[1761840118350,0.04468,107670.0,107660.0,0.04719]
[1761840118645,0.40548,107670.0,107660.0,0.003]
[1761840118849,0.40548,107670.0,107660.0,0.02403]
[1761840119440,0.04468,107670.0,107660.0,0.38286259]
[1761840119736,0.40548,107670.0,107660.0,0.28996939]
[1761840119940,0.04468,107670.0,107660.0,0.28996939]
[1761840120152,0.04468,107670.0,107660.0,0.02403]
[1761840120450,0.04468,107670.0,107660.0,0.003]
[1761840120451,1.32848,107670.0,107660.0,0.003]
[1761840120643,1.34182,107670.0,107660.0,0.003]
[1761840121241,1.01882,107670.0,107660.0,0.003]
[1761840121446,1.34178,107670.0,107660.0,0.003]
[1761840121748,1.34178,107670.0,107660.0,0.02403]
[1761840121948,1.34178,107670.0,107660.0,0.24577939]
[1761840122151,1.34178,107670.0,107660.0,0.003]
[1761840122342,1.01882,107670.0,107660.0,0.003]
[1761840122649,1.34182,107670.0,107660.0,0.28996939]
[1761840123040,1.34182,107670.0,107660.0,0.24577939]
[1761840123239,1.34182,107670.0,107660.0,0.003]
[1761840123442,0.74182,107670.0,107660.0,0.003]
[1761840124348,0.74182,107670.0,107660.0,0.02403]
[1761840124555,0.41882,107670.0,107660.0,0.38286259]
[1761840124749,0.38102,107670.0,107660.0,0.38286259]
[1761840124948,0.05802,107670.0,107660.0,0.39590259]
[1761840125151,0.37414,107680.0,107660.0,0.39590259]
[1761840125152,0.41882,107680.0,107670.0,0.1370746]
[1761840125343,0.41882,107680.0,107670.0,0.02103]
[1761840125547,0.05802,107670.0,107660.0,0.38285839]
[1761840126750,0.05802,107670.0,107660.0,0.38085839]
[1761840127556,0.41882,107670.0,107660.0,0.001]
[1761840127764,0.66159939,107670.0,107660.0,0.001]
[1761840127948,0.98459939,107670.0,107660.0,0.001]
[1761840128150,0.74182,107670.0,107660.0,0.001]
[1761840128549,0.74182,107670.0,107660.0,0.003]
[1761840130757,0.05802,107670.0,107660.0,0.28996939]
[1761840131062,0.38102,107670.0,107660.0,0.28996939]
[1761840131247,0.74182,107670.0,107660.0,0.28996939]
[1761840131452,0.74182,107670.0,107660.0,0.003]
[1761840131960,0.74182,107670.0,107660.0,0.04719]
[1761840132161,0.38102,107670.0,107660.0,0.28996939]
[1761840132758,0.05802,107670.0,107660.0,0.38286259]
[1761840132961,0.05802,107670.0,107660.0,0.44958417]
[1761840135257,0.05802,107670.0,107660.0,0.35669097]
[1761840135560,0.41882,107670.0,107660.0,0.09075158]
[1761840135955,0.41882,107670.0,107660.0,0.06972158]
[1761840137270,0.41882,107670.0,107660.0,0.09099158]
[1761840137463,0.41882,107670.0,107660.0,0.44919417]
[1761840137761,0.05802,107670.0,107660.0,0.44919417]
[1761840138268,0.05802,107670.0,107660.0,0.35630097]
[1761840138470,0.41882,107670.0,107660.0,0.35630097]
[1761840138968,0.41882,107670.0,107660.0,0.44919417]
[1761840139268,0.41882,107670.0,107660.0,0.35630097]
[1761840139668,0.41882,107670.0,107660.0,0.52044192]
[1761840139870,0.41882,107670.0,107660.0,0.11352158]
[1761840140971,0.41882,107670.0,107660.0,0.09099158]
[1761840141466,0.41882,107670.0,107660.0,0.11352158]
[1761840142166,0.41882,107670.0,107660.0,0.20641478]
[1761840142469,0.41882,107670.0,107660.0,0.11352158]
[1761840142655,0.41882,107670.0,107660.0,0.09227158]
[1761840142860,0.41882,107670.0,107660.0,0.06872158]
[1761840143455,0.05802,107670.0,107660.0,0.20686478]
[1761840143661,0.05802,107670.0,107660.0,0.1391432]
[1761840143856,0.05802,107670.0,107660.0,0.54606354]
[1761840144065,0.38102,107670.0,107660.0,0.90686354]
[1761840144268,0.05802,107670.0,107660.0,0.90686354]
[1761840144665,0.05802,107670.0,107660.0,0.54606354]
[1761840145067,0.05802,107670.0,107660.0,0.45317034]
[1761840145670,0.05802,107670.0,107660.0,0.54606354]
[1761840146972,0.05802,107670.0,107660.0,0.45317034]
[1761840147569,0.41882,107670.0,107660.0,0.001]
[1761840147772,0.41882,107670.0,107660.0,0.04625]
[1761840148167,0.05802,107670.0,107660.0,0.04625]
[1761840148567,0.41882,107670.0,107660.0,0.04625]
[1761840148769,0.41882,107670.0,107660.0,0.001]
[1761840149876,0.41882,107670.0,107660.0,0.06785337]
[1761840150076,0.41882,107670.0,107660.0,0.001]
[1761840151073,0.41882,107670.0,107660.0,0.1391432]
[1761840151374,0.05802,107670.0,107660.0,0.45217034]
[1761840151573,0.05802,107670.0,107660.0,0.54506354]
[1761840151774,0.04468,107670.0,107660.0,0.54506354]
[1761840152174,0.04468,107670.0,107660.0,0.86802354]
[1761840152175,0.0582,107670.0,107660.0,0.86802354]
[1761840152380,0.74212,107680.0,107670.0,0.1381346]
[1761840152571,0.74212,107680.0,107670.0,0.54505494]
[1761840152875,0.41916,107680.0,107670.0,0.54505494]
[1761840153072,0.74216,107680.0,107660.0,0.7766471]
[1761840153377,0.05854,107670.0,107660.0,0.4610971]
[1761840153581,0.05854,107670.0,107660.0,0.8218971]
[1761840154075,0.05854,107670.0,107660.0,1.22881744]
[1761840154674,0.05954,107670.0,107660.0,1.22881744]
[1761840154977,0.02316,107670.0,107660.0,1.23619744]
[1761840155377,0.05954,107670.0,107660.0,1.22881744]
[1761840156382,0.05954,107670.0,107660.0,0.86801744]
[1761840156569,0.05954,107670.0,107660.0,0.45217034]
[1761840156775,0.05954,107670.0,107660.0,0.04525]
[1761840156976,0.42034,107670.0,107660.0,0.04525]
[1761840157177,0.05954,107670.0,107660.0,0.04525]
[1761840157376,0.05954,107670.0,107660.0,0.90586354]
[1761840158377,0.05954,107670.0,107660.0,0.54506354]
[1761840158675,0.05954,107670.0,107660.0,0.90586354]
[1761840159484,0.05954,107670.0,107660.0,0.54506354]
[1761840159776,0.42034,107670.0,107660.0,0.04525]
[1761840160083,0.05954,107670.0,107660.0,0.1381432]
[1761840160272,0.05954,107670.0,107660.0,0.04525]
[1761840160473,0.05954,107670.0,107660.0,0.02255]
[1761840160771,0.42034,107670.0,107660.0,0.02255]
[1761840161168,0.42034,107670.0,107660.0,0.1381432]
[1761840161374,0.42034,107670.0,107660.0,0.0928932]
[1761840161584,0.05854,107660.0,107650.0,1.01670296]
[1761840161886,0.05854,107660.0,107650.0,0.13822262]
[1761840162784,0.05854,107660.0,107650.0,0.13922262]
[1761840163481,0.05854,107660.0,107650.0,0.11652262]
[1761840163680,0.74226,107660.0,107650.0,0.02362682]
[1761840163982,0.74226,107660.0,107650.0,0.04632682]
[1761840164185,0.74226,107660.0,107650.0,0.13922872]
[1761840164370,0.74226,107660.0,107650.0,0.04632682]
[1761840164571,0.74226,107660.0,107650.0,0.13922872]
[1761840164775,0.74226,107660.0,107650.0,0.04632682]
[1761840164972,0.74326,107660.0,107650.0,0.04532682]
[1761840165173,0.74326,107660.0,107650.0,7.682e-05]
[1761840167880,0.74606,107660.0,107650.0,7.682e-05]
[1761840168275,1.15018034,107660.0,107650.0,7.682e-05]
[1761840168480,1.15298034,107660.0,107650.0,7.682e-05]
[1761840169078,0.05854,107640.0,107630.0,1.56685337]
[1761840169288,0.74226,107640.0,107630.0,1.5]
[1761840169490,0.75148582,107640.0,107630.0,1.5]
[1761840169975,0.75155483,107640.0,107630.0,1.5]
[1761840170174,1.11235483,107640.0,107630.0,1.5]
[1761840170584,0.05854,107630.0,107620.0,0.06685337]
[1761840170893,0.05854,107620.0,107610.0,0.11195109]
[1761840171189,0.3815,107620.0,107610.0,1.56670109]
[1761840171389,0.7423,107620.0,107610.0,1.56670109]
[1761840172688,0.7423,107620.0,107610.0,1.65963749]
[1761840173086,0.7423,107620.0,107610.0,2.06655783]
[1761840173586,0.7423,107620.0,107610.0,1.66163749]
[1761840173786,0.05854,107620.0,107610.0,2.42935783]
[1761840174088,0.02216,107620.0,107610.0,2.44073783]
[1761840174588,0.05681,107620.0,107610.0,2.43335783]
[1761840174787,0.05681,107620.0,107610.0,2.02643749]
[1761840174988,0.05681,107620.0,107610.0,2.07255783]
[1761840175585,0.41761,107620.0,107610.0,1.57270109]
[1761840175791,0.05681,107620.0,107610.0,1.66563749]
[1761840176686,0.05681,107620.0,107610.0,1.57270109]
[1761840176891,0.05681,107620.0,107610.0,1.66563749]
[1761840177693,0.05681,107620.0,107610.0,1.57270109]
[1761840178188,0.41761,107620.0,107610.0,1.57270109]
[1761840179985,0.05681,107620.0,107610.0,1.57270109]
[1761840180182,0.05781,107620.0,107610.0,1.56670109]
[1761840180396,0.38181,107620.0,107610.0,1.56670109]
[1761840180887,0.38181,107620.0,107610.0,1.65963749]
[1761840181091,0.002,107620.0,107610.0,2.43473783]
[1761840181297,0.002,107620.0,107610.0,2.69103674]
[1761840181679,0.002,107620.0,107610.0,3.29383674]
[1761840181894,0.002,107620.0,107610.0,2.69103674]
[1761840182087,0.002,107620.0,107610.0,2.69383674]
[1761840182483,0.00192318,107620.0,107610.0,2.84043674]
[1761840182688,0.00192318,107620.0,107610.0,2.77727834]
[1761840182892,3.18e-06,107620.0,107610.0,2.77727834]
[1761840183397,3.18e-06,107620.0,107610.0,2.69103674]
[1761840183595,3.18e-06,107620.0,107610.0,2.77440077]
[1761840183894,0.41722901,107640.0,107630.0,0.04519]
[1761840184091,0.41722901,107640.0,107630.0,0.43488223]
[1761840184396,0.41722901,107640.0,107630.0,0.11188223]
[1761840185394,0.41722901,107640.0,107630.0,0.06669223]
[1761840185595,0.41722901,107640.0,107630.0,0.001]
[1761840185787,0.74018901,107640.0,107630.0,0.001]
[1761840186199,0.74018901,107640.0,107630.0,0.01052746]
[1761840187093,0.74018901,107640.0,107630.0,0.05471746]
[1761840187299,0.04336,107630.0,107620.0,0.08999223]
[1761840187503,0.40416,107630.0,107620.0,0.08999223]
[1761840187688,0.40416,107630.0,107620.0,0.06669223]
[1761840187889,0.40416,107630.0,107620.0,0.08999223]
[1761840188192,0.40416,107630.0,107620.0,0.11188223]
[1761840188587,0.04336,107630.0,107620.0,0.20681003]
[1761840188985,0.04336,107630.0,107620.0,0.11388223]
[1761840189189,0.04336,107630.0,107620.0,0.20681003]
[1761840189490,0.04336,107630.0,107620.0,0.61373037]
[1761840189690,0.02171,107630.0,107620.0,0.61919037]
[1761840189900,0.04336,107630.0,107620.0,0.61373037]
[1761840190210,0.04336,107630.0,107620.0,0.11488223]
[1761840190500,0.40416,107630.0,107620.0,0.06969223]
[1761840190799,0.40416,107630.0,107620.0,0.11488223]
[1761840191699,0.40416,107630.0,107620.0,0.06969223]
[1761840192100,0.04336,107630.0,107620.0,0.61473037]
[1761840192299,6.901e-05,107640.0,107630.0,0.1381092]
[1761840192509,6.901e-05,107640.0,107630.0,1.50862954]
[1761840192697,6.901e-05,107640.0,107630.0,0.99199357]
[1761840192898,0.41716,107670.0,107660.0,0.04519]
[1761840193299,0.41716,107670.0,107660.0,0.1380833]
[1761840194206,0.41716,107670.0,107660.0,0.04519]
[1761840195010,0.41716,107670.0,107660.0,0.0233]
[1761840195514,0.05617,107660.0,107650.0,0.8232606]
[1761840195806,0.3738,107670.0,107650.0,0.8232606]
[1761840196002,0.41802,107670.0,107660.0,0.04604]
[1761840196611,0.41802,107670.0,107660.0,0.1389333]
[1761840196808,0.41802,107670.0,107660.0,0.54585364]
[1761840197014,0.3738,107670.0,107660.0,0.55237364]
[1761840197315,0.41802,107670.0,107660.0,0.54585364]
[1761840197718,0.41802,107670.0,107660.0,0.55519674]
[1761840198208,0.41802,107670.0,107660.0,0.1482764]
[1761840198411,0.41802,107670.0,107660.0,0.04604]
[1761840198716,0.41902,107670.0,107660.0,0.04604]
[1761840199015,0.001,107670.0,107660.0,0.55237364]
[1761840199809,0.04522,107670.0,107660.0,0.55519063]
[1761840200717,0.001,107670.0,107660.0,0.56171063]
[1761840200923,0.04522,107670.0,107660.0,0.56171063]
[1761840201215,0.04522,107670.0,107660.0,0.55519063]
[1761840201416,0.04522,107670.0,107660.0,0.14827029]
[1761840201818,0.04522,107670.0,107660.0,0.39101015]
[1761840202315,0.001,107670.0,107660.0,0.39753015]
[1761840203214,0.04603,107670.0,107660.0,0.39101015]
[1761840203814,0.001,107670.0,107660.0,0.39753015]
[1761840204011,0.001,107670.0,107660.0,0.75833015]
[1761840204213,0.001,107670.0,107660.0,0.90723015]
[1761840205213,0.001,107670.0,107660.0,0.76113015]
[1761840205419,0.41883,107700.0,107690.0,0.04503]
[1761840205612,0.44248293,107700.0,107690.0,0.23913838]
[1761840206619,0.44248293,107700.0,107690.0,0.19410838]
[1761840206814,0.04503,107690.0,107680.0,0.56197838]
[1761840207012,0.40583,107690.0,107680.0,0.75608676]
[1761840207517,0.40583,107690.0,107680.0,0.61056203]
[1761840207711,0.40583,107690.0,107680.0,0.70343803]
[1761840207913,0.40583,107690.0,107680.0,0.61056203]
[1761840208115,0.40783,107690.0,107680.0,0.61056203]
[1761840208314,0.40783,107690.0,107680.0,0.28772203]
[1761840208517,0.40783,107690.0,107680.0,0.36783]
[1761840209119,0.05797,107680.0,107670.0,0.36783]
[1761840209322,0.05797,107680.0,107670.0,0.70340663]
[1761840209917,0.41877,107680.0,107670.0,0.28772203]
[1761840210125,0.41877,107680.0,107670.0,0.26442203]
[1761840210720,0.41977,107680.0,107670.0,0.26442203]
[1761840210924,0.41977,107680.0,107670.0,0.28772203]
[1761840211124,0.41977,107680.0,107670.0,0.38060663]
[1761840211921,0.05897,107680.0,107670.0,0.74140663]
[1761840212519,0.05897,107680.0,107670.0,0.38060663]
[1761840213732,0.41977,107680.0,107670.0,0.28772203]
[1761840214025,0.04503,107670.0,107660.0,0.83086029]
[1761840214229,0.04503,107670.0,107660.0,0.86161232]
[1761840215431,0.04503,107670.0,107660.0,0.19393]
[1761840215934,0.04503,107670.0,107660.0,0.52951533]
[1761840216137,0.05797,107680.0,107670.0,0.1379147]
[1761840216341,0.05797,107680.0,107670.0,0.38060673]
[1761840216530,0.03508,107680.0,107670.0,0.70336673]
[1761840217036,0.05797,107680.0,107670.0,0.70336673]
[1761840217426,0.05897,107680.0,107670.0,0.70336673]
[1761840218544,0.05897,107680.0,107670.0,1.06416673]
[1761840219337,0.03608,107680.0,107670.0,1.06416673]
[1761840219540,0.001,107680.0,107670.0,1.06416673]
[1761840220239,0.02314,107680.0,107670.0,1.06416673]
[1761840220830,0.05897,107680.0,107670.0,1.06416673]
[1761840221541,0.05897,107680.0,107670.0,0.8214747]
[1761840221738,0.05897,107680.0,107670.0,1.06416673]
[1761840223544,0.05897,107680.0,107670.0,1.21046673]
[1761840224042,0.05897,107680.0,107670.0,0.84962673]
[1761840225935,0.05897,107680.0,107670.0,0.75674203]
[1761840226142,0.05897,107680.0,107670.0,0.51405]
[1761840226832,0.41977,107680.0,107670.0,0.51405]
[1761840227345,0.41977,107680.0,107670.0,0.75674203]
[1761840227644,0.41977,107680.0,107670.0,0.84962673]
[1761840228350,0.41977,107680.0,107670.0,0.52690673]
[1761840229349,0.41977,107680.0,107670.0,0.38060673]
[1761840231446,0.41977,107680.0,107670.0,0.28772203]
[1761840231634,0.41977,107680.0,107670.0,0.38060673]
[1761840232342,0.05897,107680.0,107670.0,0.38060673]
[1761840232538,0.001,107680.0,107670.0,0.38712673]
[1761840232931,0.001,107680.0,107670.0,0.45390081]
[1761840233136,0.001,107680.0,107670.0,0.38712673]
[1761840233332,0.001,107680.0,107670.0,0.5994664]
[1761840234049,0.37374,107690.0,107670.0,0.5994664]
[1761840234050,0.41868,107690.0,107680.0,0.04421]
[1761840234348,0.41868,107690.0,107680.0,0.52534372]
[1761840234736,0.04494,107690.0,107680.0,0.52534372]
[1761840234947,0.04494,107690.0,107680.0,1.04215253]
[1761840235148,0.02214,107690.0,107680.0,1.04953253]
[1761840235346,0.02214,107690.0,107680.0,0.85540372]
[1761840235647,0.3608,107720.0,107710.0,0.1435802]
[1761840235847,0.0899255,107740.0,107730.0,0.04421]
[1761840236146,0.08844402,107740.0,107730.0,0.28685738]
[1761840236448,0.05851,107720.0,107710.0,0.1370602]
[1761840236648,0.05851,107720.0,107710.0,0.4597002]
[1761840236850,0.05851,107720.0,107710.0,0.83002944]
[1761840237435,0.02214,107720.0,107710.0,0.83002944]
[1761840237654,0.02214,107720.0,107710.0,0.97982662]
[1761840237655,0.04494,107720.0,107710.0,0.97982662]
[1761840237949,0.04494,107720.0,107710.0,1.07367672]
[1761840238336,0.3608,107730.0,107720.0,0.1370515]
[1761840238537,0.00654,107740.0,107730.0,0.1370429]
[1761840238837,0.02868,107740.0,107730.0,0.70233028]
[1761840239037,0.00654,107740.0,107730.0,1.06313028]
[1761840240450,0.04225,107740.0,107730.0,1.06313028]
[1761840240645,0.06605,107740.0,107730.0,1.06313028]
[1761840241039,0.06505,107740.0,107730.0,0.28685738]
[1761840241550,0.00654,107740.0,107730.0,0.37969028]
[1761840241742,0.02868,107740.0,107730.0,0.74049028]
[1761840242443,0.00654,107740.0,107730.0,0.74049028]
[1761840242747,0.06505,107740.0,107730.0,0.37969028]
[1761840242951,0.00654,107740.0,107730.0,0.37969028]
[1761840243648,0.02868,107740.0,107730.0,0.37969028]
[1761840243838,0.06505,107740.0,107730.0,0.37969028]
[1761840244650,0.02214,107730.0,107720.0,0.4536351]
[1761840244950,0.04494,107730.0,107720.0,1.06305248]
[1761840245451,0.04494,107730.0,107710.0,0.29638662]
[1761840245452,0.05851,107720.0,107710.0,0.29638662]
[1761840245753,0.05851,107720.0,107710.0,0.60941738]
[1761840245944,0.05851,107720.0,107710.0,0.28685738]
[1761840246350,0.41931,107720.0,107710.0,0.04421]
[1761840246543,0.41931,107720.0,107710.0,0.04521]
[1761840246744,0.41931,107720.0,107710.0,0.28785738]
[1761840247146,0.41931,107720.0,107710.0,0.04521]
[1761840247343,0.41931,107720.0,107710.0,0.001]
[1761840248344,0.75931,107720.0,107710.0,0.02398]
[1761840248545,0.75931,107720.0,107710.0,0.38070758]
[1761840248843,0.75931,107720.0,107710.0,0.28785738]
[1761840249045,0.75931,107720.0,107710.0,0.28685738]
[1761840249245,0.41931,107720.0,107710.0,0.24264738]
[1761840249551,0.04494,107710.0,107700.0,0.1370625]
[1761840249851,0.40574,107710.0,107700.0,0.1370625]
[1761840250453,0.3608,107710.0,107700.0,0.38516988]
[1761840250764,0.41931,107720.0,107710.0,0.1370602]
[1761840251050,0.3608,107720.0,107710.0,0.37970758]
[1761840251248,0.32252,107730.0,107710.0,0.37970758]
[1761840251249,0.3608,107730.0,107720.0,0.0928374]
[1761840251455,0.42585,107740.0,107730.0,0.1370429]
[1761840251651,0.38091,107740.0,107730.0,0.37969028]
[1761840251952,0.00654,107740.0,107730.0,1.06301028]
[1761840253145,0.3608,107760.0,107750.0,0.1370257]
[1761840253352,0.3608,107760.0,107750.0,0.94484046]
[1761840253555,0.3608,107760.0,107750.0,1.54764046]
[1761840253753,0.3608,107760.0,107750.0,0.94764046]
[1761840253946,0.3608,107760.0,107750.0,0.60937738]
[1761840254148,0.38394,107760.0,107750.0,0.60937738]
[1761840254342,0.38394,107760.0,107750.0,0.70219308]
[1761840254549,0.38394,107760.0,107750.0,0.71131327]
[1761840254749,0.3618,107760.0,107750.0,0.71131327]
[1761840255151,0.3618,107760.0,107750.0,0.71411327]
[1761840255355,0.3618,107760.0,107750.0,0.71131327]
[1761840255852,0.3618,107760.0,107750.0,0.61849757]
[1761840256052,0.3618,107760.0,107750.0,0.71131327]
[1761840258247,0.38457,107760.0,107750.0,0.71131327]
[1761840258452,0.4203,107760.0,107750.0,0.29597757]
[1761840258652,0.4203,107760.0,107750.0,0.61841757]
[1761840259059,0.4203,107760.0,107750.0,0.29597757]
[1761840259265,0.4203,107760.0,107750.0,0.61841757]
[1761840259566,0.4203,107760.0,107750.0,0.71123327]
[1761840260356,0.4203,107760.0,107750.0,0.61841757]
[1761840261254,0.3618,107760.0,107750.0,0.71123327]
[1761840261659,0.3618,107760.0,107750.0,0.71403327]
[1761840261864,0.3618,107760.0,107750.0,0.95668065]
[1761840262555,0.3608,107770.0,107760.0,0.1436871]
[1761840262756,0.3608,107770.0,107760.0,0.62898186]
[1761840263563,0.3608,107770.0,107760.0,0.54972752]
[1761840263766,0.3608,107780.0,107770.0,0.0927975]
[1761840264063,0.40677,107790.0,107780.0,0.04436]
[1761840264251,0.42804244,107790.0,107780.0,0.45040042]
[1761840265563,0.42804244,107790.0,107770.0,0.6832]
[1761840265564,0.05951,107780.0,107770.0,0.40516]
[1761840265782,0.05951,107780.0,107770.0,0.72756]
[1761840265962,0.05951,107780.0,107770.0,0.40516]
[1761840266165,0.05951,107780.0,107770.0,0.72756]
[1761840266376,0.05951,107780.0,107770.0,0.40516]
[1761840266665,0.05951,107780.0,107770.0,0.72756]
[1761840266863,0.05951,107780.0,107770.0,0.72856]
[1761840267468,0.05951,107780.0,107770.0,0.8213585]
[1761840267665,0.05951,107780.0,107770.0,1.22739892]
[1761840267969,0.40677,107790.0,107780.0,0.04436]
[1761840268169,0.4280631,107790.0,107780.0,0.45040042]
[1761840268560,0.4280631,107790.0,107780.0,0.54319022]
[1761840268760,0.4280631,107790.0,107780.0,0.45040042]
[1761840269159,0.3820931,107790.0,107780.0,0.45586042]
[1761840269467,0.69677,107800.0,107780.0,0.54865022]
[1761840269468,0.37437,107800.0,107780.0,0.54865022]
[1761840269662,0.08083492,107800.0,107790.0,1.22634162]
[1761840270357,0.02129492,107800.0,107790.0,1.22634162]
[1761840271071,0.08080492,107800.0,107790.0,1.13356042]
[1761840271263,0.08080492,107800.0,107790.0,1.22634162]
[1761840271968,0.02129492,107800.0,107790.0,0.8203012]
[1761840272171,0.05813099,107800.0,107790.0,1.22634162]
[1761840272371,0.08180099,107800.0,107790.0,1.22634162]
[1761840272972,0.001,107800.0,107790.0,1.22634162]
[1761840273376,0.001,107800.0,107790.0,1.22914162]
[1761840273778,0.001,107800.0,107790.0,1.30164572]
[1761840274076,0.001,107800.0,107790.0,1.29884572]
[1761840276573,0.02487328,107820.0,107810.0,0.1371239]
[1761840276879,0.10405916,107830.0,107820.0,0.1371153]
[1761840277075,0.10405916,107830.0,107820.0,2.40395572]
[1761840277285,0.02487328,107830.0,107820.0,2.41133572]
[1761840277580,0.07084328,107830.0,107820.0,2.72627572]
[1761840277965,0.04597,107830.0,107820.0,2.73577882]
[1761840278781,0.04597,107830.0,107820.0,2.3297384]
[1761840278975,0.04597,107830.0,107820.0,2.76899057]
[1761840279278,0.0233,107830.0,107820.0,2.76899057]
[1761840279478,0.04597,107830.0,107820.0,2.76899057]
[1761840279979,0.04597,107830.0,107820.0,2.36295015]
[1761840280170,0.04697,107830.0,107820.0,2.76899057]
[1761840280371,0.001,107830.0,107820.0,2.77637057]
[1761840281473,0.001,107830.0,107820.0,2.77917057]
[1761840281878,0.001,107830.0,107820.0,2.77637057]
[1761840282679,0.001,107830.0,107820.0,3.37637057]
[1761840282880,0.001,107830.0,107820.0,3.37917057]
[1761840284685,0.001,107830.0,107820.0,3.37637057]
[1761840285984,0.001,107830.0,107820.0,3.37917057]
[1761840286185,0.001,107830.0,107820.0,3.37637057]
[1761840286487,0.001,107830.0,107820.0,3.37917057]
[1761840286888,0.001,107830.0,107820.0,3.37637057]
[1761840287979,0.001,107830.0,107820.0,2.60035057]
[1761840288179,0.001,107830.0,107820.0,2.92255057]
[1761840288790,0.001,107830.0,107820.0,2.88933882]
[1761840289183,0.05951,107840.0,107830.0,0.1371067]
[1761840289382,0.05951,107840.0,107830.0,0.90394712]
[1761840289588,0.01354,107860.0,107850.0,0.04436]
[1761840289888,0.05951,107860.0,107850.0,0.0233]
[1761840290084,0.04597,107850.0,107840.0,1.23530042]
[1761840290384,0.04597,107850.0,107840.0,0.87362]
[1761840290580,0.05951,107850.0,107840.0,0.91886042]
[1761840290784,0.05951,107850.0,107840.0,1.27966042]
[1761840290988,0.05951,107850.0,107840.0,0.91886042]
[1761840291185,0.05951,107850.0,107840.0,0.46846]
[1761840291576,0.05951,107850.0,107840.0,0.6056381]
[1761840291781,0.05951,107850.0,107840.0,0.2834781]
[1761840292286,0.05951,107850.0,107840.0,0.6442781]
[1761840292584,0.05951,107850.0,107840.0,1.05031852]
[1761840292786,0.03608,107860.0,107850.0,0.1371695]
[1761840292988,0.0591,107860.0,107850.0,0.90400992]
[1761840293190,0.0591,107860.0,107850.0,1.22616992]
[1761840295894,0.0591,107870.0,107860.0,0.1371609]
[1761840296090,0.0591,107870.0,107860.0,0.54320132]
[1761840296490,0.0591,107870.0,107860.0,0.90400132]
[1761840296789,0.02254,107870.0,107860.0,0.90400132]
[1761840296988,0.04556,107870.0,107860.0,0.90400132]
[1761840297189,0.04956,107870.0,107860.0,0.90400132]
[1761840297688,0.04656,107870.0,107860.0,0.90400132]
[1761840297890,0.001,107870.0,107860.0,0.90400132]
[1761840298090,0.04656,107870.0,107860.0,0.81128042]
[1761840298289,0.04656,107870.0,107860.0,0.90400132]
[1761840299594,0.02354,107870.0,107860.0,0.90400132]